[Event "Titled Tuesday Blitz June 27 Late 2023"]
[White "Licznerski, Lukasz"]
[Black "Martinez Alcantara, Jose Eduardo"]
[WhiteFideId "1179250"]
[BlackFideId "3805662"]
[WhiteElo "2862"]
[BlackElo "3008"]
[Result "1/2-1/2"]
[Round "4"]
[TimeControl "180+2"]
[Date "2023.06.27"]
[WhiteClock "0:00:00"]
[BlackClock "0:00:12"]
[Board "10"]

1. e4 {[%clk 0:03:00]}  c5 {[%clk 0:02:58]} 2. Nf3 {[%clk 0:03:00]}  d6 {[%clk 0:02:59]} 3. Bb5+ {[%clk 0:02:59]}  Nd7 {[%clk 0:02:56]} 4. a4 {[%clk 0:02:59]}  a6 {[%clk 0:02:53]} 5. Be2 {[%clk 0:02:58]}  Ngf6 {[%clk 0:02:52]} 6. Nc3 {[%clk 0:02:59]}  b6 {[%clk 0:02:50]} 7. d4 {[%clk 0:02:59]}  cxd4 {[%clk 0:02:51]} 8. Qxd4 {[%clk 0:02:59]}  Bb7 {[%clk 0:02:51]} 9. O-O {[%clk 0:02:58]}  e6 {[%clk 0:02:52]} 10. Nd2 {[%clk 0:02:48]}  Qc7 {[%clk 0:02:46]} 11. Nc4 {[%clk 0:02:47]}  e5 {[%clk 0:02:26]} 12. Qe3 {[%clk 0:02:39]}  Be7 {[%clk 0:02:25]} 13. Qf3 {[%clk 0:02:16]}  Nc5 {[%clk 0:02:18]} 14. Bd3 {[%clk 0:02:15]}  O-O {[%clk 0:02:07]} 15. Ne3 {[%clk 0:02:14]}  g6 {[%clk 0:02:05]} 16. Nc4 {[%clk 0:01:51]}  Ne6 {[%clk 0:01:43]} 17. Bh6 {[%clk 0:01:48]}  Nd4 {[%clk 0:01:38]} 18. Qd1 {[%clk 0:01:39]}  Rfd8 {[%clk 0:01:37]} 19. Ne3 {[%clk 0:01:37]}  Ne6 {[%clk 0:01:24]} 20. Kh1 {[%clk 0:01:21]}  Rac8 {[%clk 0:01:23]} 21. f3 {[%clk 0:01:16]}  Qd7 {[%clk 0:01:20]} 22. Bc4 {[%clk 0:01:10]}  Bf8 {[%clk 0:01:11]} 23. Bxf8 {[%clk 0:01:08]}  Kxf8 {[%clk 0:01:12]} 24. Qe2 {[%clk 0:01:02]}  Nd4 {[%clk 0:01:07]} 25. Qd3 {[%clk 0:01:01]}  a5 {[%clk 0:01:01]} 26. f4 {[%clk 0:00:49]}  Kg7 {[%clk 0:00:58]} 27. fxe5 {[%clk 0:00:48]}  dxe5 {[%clk 0:00:58]} 28. Rxf6 {[%clk 0:00:47]}  Kxf6 {[%clk 0:00:56]} 29. Rf1+ {[%clk 0:00:48]}  Kg7 {[%clk 0:00:57]} 30. Rxf7+ {[%clk 0:00:47]}  Qxf7 {[%clk 0:00:58]} 31. Bxf7 {[%clk 0:00:48]}  Kxf7 {[%clk 0:00:58]} 32. Ng4 {[%clk 0:00:24]}  Kg7 {[%clk 0:00:44]} 33. Qg3 {[%clk 0:00:21]}  Rc5 {[%clk 0:00:34]} 34. Qh4 {[%clk 0:00:20]}  Rf8 {[%clk 0:00:35]} 35. h3 {[%clk 0:00:14]}  h5 {[%clk 0:00:30]} 36. Ne3 {[%clk 0:00:12]}  Rc7 {[%clk 0:00:25]} 37. Qg3 {[%clk 0:00:11]}  Re7 {[%clk 0:00:25]} 38. Ncd5 {[%clk 0:00:10]}  Bxd5 {[%clk 0:00:26]} 39. Nxd5 {[%clk 0:00:11]}  Re6 {[%clk 0:00:23]} 40. c3 {[%clk 0:00:10]}  Ne2 {[%clk 0:00:22]} 41. Qe3 {[%clk 0:00:10]}  Nf4 {[%clk 0:00:22]} 42. Nxb6 {[%clk 0:00:08]}  h4 {[%clk 0:00:18]} 43. Nd5 {[%clk 0:00:07]}  Nh5 {[%clk 0:00:19]} 44. Kh2 {[%clk 0:00:04]}  Ng3 {[%clk 0:00:19]} 45. Qg5 {[%clk 0:00:00]}  Rh8 {[%clk 0:00:12]} 1/2-1/2


[Site "https://www.chess.com"]

[Event "Titled Tuesday Blitz June 27 Late 2023"]
[White "Sargsyan, Shant"]
[Black "Krzyzanowski, Marcin"]
[WhiteFideId "13306766"]
[BlackFideId "1132199"]
[WhiteElo "3003"]
[BlackElo "2846"]
[Result "1-0"]
[Round "4"]
[TimeControl "180+2"]
[Date "2023.06.27"]
[WhiteClock "0:00:04"]
[BlackClock "0:00:00"]
[Board "11"]

1. c4 {[%clk 0:03:00]}  e5 {[%clk 0:02:59]} 2. g3 {[%clk 0:03:01]}  Nf6 {[%clk 0:02:58]} 3. Bg2 {[%clk 0:03:01]}  d5 {[%clk 0:02:59]} 4. cxd5 {[%clk 0:03:01]}  Nxd5 {[%clk 0:02:59]} 5. Nc3 {[%clk 0:03:02]}  Nb6 {[%clk 0:02:59]} 6. d3 {[%clk 0:03:02]}  Be7 {[%clk 0:02:58]} 7. Be3 {[%clk 0:03:02]}  O-O {[%clk 0:02:56]} 8. Rc1 {[%clk 0:03:03]}  f5 {[%clk 0:02:34]} 9. h4 {[%clk 0:02:53]}  f4 {[%clk 0:02:29]} 10. Bxb6 {[%clk 0:02:53]}  axb6 {[%clk 0:02:29]} 11. Nf3 {[%clk 0:02:51]}  fxg3 {[%clk 0:02:24]} 12. fxg3 {[%clk 0:02:50]}  Kh8 {[%clk 0:01:52]} 13. O-O {[%clk 0:02:40]}  Nc6 {[%clk 0:01:52]} 14. Kh2 {[%clk 0:02:39]}  Be6 {[%clk 0:01:51]} 15. a3 {[%clk 0:02:36]}  Bc5 {[%clk 0:01:43]} 16. Qd2 {[%clk 0:02:11]}  Na5 {[%clk 0:01:30]} 17. Qg5 {[%clk 0:01:56]}  Nb3 {[%clk 0:01:25]} 18. Rcd1 {[%clk 0:01:50]}  Bd4 {[%clk 0:01:02]} 19. Qxd8 {[%clk 0:01:47]}  Raxd8 {[%clk 0:01:01]} 20. Nxd4 {[%clk 0:01:46]}  exd4 {[%clk 0:01:02]} 21. Ne4 {[%clk 0:01:43]}  h6 {[%clk 0:00:56]} 22. Bf3 {[%clk 0:01:42]}  c5 {[%clk 0:00:55]} 23. g4 {[%clk 0:01:40]}  b5 {[%clk 0:00:53]} 24. Kg3 {[%clk 0:01:38]}  c4 {[%clk 0:00:53]} 25. g5 {[%clk 0:01:38]}  Bd5 {[%clk 0:00:44]} 26. dxc4 {[%clk 0:01:08]}  bxc4 {[%clk 0:00:30]} 27. Nd2 {[%clk 0:01:04]}  c3 {[%clk 0:00:25]} 28. bxc3 {[%clk 0:00:56]}  dxc3 {[%clk 0:00:25]} 29. Nxb3 {[%clk 0:00:54]}  Bxb3 {[%clk 0:00:25]} 30. Rb1 {[%clk 0:00:54]}  Ba4 {[%clk 0:00:18]} 31. Be4 {[%clk 0:00:38]}  Rxf1 {[%clk 0:00:14]} 32. Rxf1 {[%clk 0:00:39]}  c2 {[%clk 0:00:13]} 33. Bd3 {[%clk 0:00:27]}  hxg5 {[%clk 0:00:11]} 34. hxg5 {[%clk 0:00:27]}  b5 {[%clk 0:00:11]} 35. Rh1+ {[%clk 0:00:20]}  Kg8 {[%clk 0:00:11]} 36. g6 {[%clk 0:00:19]}  Kf8 {[%clk 0:00:07]} 37. Kf4 {[%clk 0:00:19]}  Ke7 {[%clk 0:00:06]} 38. Ke3 {[%clk 0:00:19]}  Rc8 {[%clk 0:00:02]} 39. Kd2 {[%clk 0:00:18]}  Kf6 {[%clk 0:00:03]} 40. Rf1+ {[%clk 0:00:18]}  Kg5 {[%clk 0:00:02]} 41. Rf5+ {[%clk 0:00:15]}  Kh6 {[%clk 0:00:02]} 42. Rf1 {[%clk 0:00:16]}  Rc7 {[%clk 0:00:01]} 43. Rd1 {[%clk 0:00:08]}  Rc5 {[%clk 0:00:01]} 44. Rh1+ {[%clk 0:00:05]}  Kg5 {[%clk 0:00:02]} 45. Rg1+ {[%clk 0:00:05]}  Kh6 {[%clk 0:00:02]} 46. Kc1 {[%clk 0:00:05]}  Rc7 {[%clk 0:00:00]} 47. Rf1 {[%clk 0:00:04]} 1-0


[Site "https://www.chess.com"]

[Event "Titled Tuesday Blitz June 27 Late 2023"]
[White "Bortnyk, Olexandr"]
[Black "Haydon, David L"]
[WhiteFideId "14120828"]
[BlackFideId "415405"]
[WhiteElo "2988"]
[BlackElo "2808"]
[Result "1-0"]
[Round "4"]
[TimeControl "180+2"]
[Date "2023.06.27"]
[WhiteClock "0:00:22"]
[BlackClock "0:00:11"]
[Board "13"]

1. e4 {[%clk 0:03:00]}  c6 {[%clk 0:03:00]} 2. c4 {[%clk 0:03:00]}  d5 {[%clk 0:03:00]} 3. cxd5 {[%clk 0:03:01]}  cxd5 {[%clk 0:03:00]} 4. exd5 {[%clk 0:03:00]}  Qxd5 {[%clk 0:03:01]} 5. Nc3 {[%clk 0:03:00]}  Qd8 {[%clk 0:03:01]} 6. Bc4 {[%clk 0:03:00]}  Nf6 {[%clk 0:03:01]} 7. Nf3 {[%clk 0:03:00]}  e6 {[%clk 0:03:02]} 8. O-O {[%clk 0:03:00]}  Be7 {[%clk 0:03:02]} 9. d4 {[%clk 0:02:54]}  O-O {[%clk 0:03:02]} 10. a3 {[%clk 0:02:51]}  Nc6 {[%clk 0:03:01]} 11. Re1 {[%clk 0:02:47]}  Bd7 {[%clk 0:02:58]} 12. d5 {[%clk 0:02:43]}  exd5 {[%clk 0:02:57]} 13. Nxd5 {[%clk 0:02:44]}  Nxd5 {[%clk 0:02:57]} 14. Bxd5 {[%clk 0:02:45]}  Bf6 {[%clk 0:02:56]} 15. Qb3 {[%clk 0:02:38]}  Na5 {[%clk 0:02:53]} 16. Qb4 {[%clk 0:02:36]}  Bc6 {[%clk 0:02:50]} 17. Bxc6 {[%clk 0:02:30]}  Nxc6 {[%clk 0:02:45]} 18. Qxb7 {[%clk 0:02:30]}  Na5 {[%clk 0:02:45]} 19. Qe4 {[%clk 0:02:21]}  Nb3 {[%clk 0:02:42]} 20. Rb1 {[%clk 0:02:20]}  Nxc1 {[%clk 0:02:36]} 21. Rexc1 {[%clk 0:02:19]}  Qa5 {[%clk 0:02:31]} 22. h4 {[%clk 0:02:13]}  Rab8 {[%clk 0:02:24]} 23. Rc2 {[%clk 0:01:55]}  Rfe8 {[%clk 0:02:20]} 24. Qf4 {[%clk 0:01:52]}  h6 {[%clk 0:02:16]} 25. Rc7 {[%clk 0:01:43]}  Rb5 {[%clk 0:02:00]} 26. b4 {[%clk 0:01:33]}  Qxa3 {[%clk 0:01:41]} 27. Qc4 {[%clk 0:01:32]}  Rbb8 {[%clk 0:01:33]} 28. Qxf7+ {[%clk 0:01:23]}  Kh8 {[%clk 0:01:33]} 29. Rxa7 {[%clk 0:01:01]}  Qd3 {[%clk 0:01:32]} 30. Rc1 {[%clk 0:01:00]}  Re4 {[%clk 0:01:27]} 31. Rac7 {[%clk 0:00:28]}  Ree8 {[%clk 0:00:43]} 32. Qc4 {[%clk 0:00:28]}  Qf5 {[%clk 0:00:40]} 33. Rc5 {[%clk 0:00:27]}  Qg6 {[%clk 0:00:36]} 34. h5 {[%clk 0:00:28]}  Qh7 {[%clk 0:00:36]} 35. b5 {[%clk 0:00:28]}  Red8 {[%clk 0:00:24]} 36. Re1 {[%clk 0:00:24]}  Qd3 {[%clk 0:00:18]} 37. Qxd3 {[%clk 0:00:23]}  Rxd3 {[%clk 0:00:18]} 38. Ne5 {[%clk 0:00:22]}  Rb3 {[%clk 0:00:15]} 39. Nd7 {[%clk 0:00:21]}  R8xb5 {[%clk 0:00:14]} 40. Re8+ {[%clk 0:00:20]}  Kh7 {[%clk 0:00:14]} 41. Nxf6+ {[%clk 0:00:21]}  gxf6 {[%clk 0:00:11]} 42. Rc7# {[%clk 0:00:22]} 1-0


[Site "https://www.chess.com"]

[Event "Titled Tuesday Blitz June 27 Late 2023"]
[White "Tiglon, Bryce"]
[Black "Yoo, Christopher Woojin"]
[WhiteFideId "2087456"]
[BlackFideId "30909694"]
[WhiteElo "2773"]
[BlackElo "2986"]
[Result "1-0"]
[Round "4"]
[TimeControl "180+2"]
[Date "2023.06.27"]
[WhiteClock "0:00:04"]
[BlackClock "0:00:00"]
[Board "14"]

1. Nf3 {[%clk 0:03:00]}  c5 {[%clk 0:02:59]} 2. e3 {[%clk 0:02:59]}  Nc6 {[%clk 0:02:55]} 3. d4 {[%clk 0:02:56]}  cxd4 {[%clk 0:02:55]} 4. Nxd4 {[%clk 0:02:53]}  Nf6 {[%clk 0:02:54]} 5. c4 {[%clk 0:02:47]}  e5 {[%clk 0:02:38]} 6. Nb5 {[%clk 0:02:46]}  d6 {[%clk 0:02:33]} 7. N1c3 {[%clk 0:02:45]}  a6 {[%clk 0:02:33]} 8. Na3 {[%clk 0:02:46]}  Be6 {[%clk 0:02:29]} 9. e4 {[%clk 0:02:38]}  g6 {[%clk 0:02:11]} 10. Be2 {[%clk 0:02:29]}  Bg7 {[%clk 0:02:10]} 11. Be3 {[%clk 0:02:28]}  O-O {[%clk 0:02:11]} 12. O-O {[%clk 0:02:28]}  Ne8 {[%clk 0:02:06]} 13. Nc2 {[%clk 0:02:25]}  f5 {[%clk 0:02:04]} 14. exf5 {[%clk 0:02:19]}  gxf5 {[%clk 0:02:05]} 15. Nd5 {[%clk 0:02:16]}  f4 {[%clk 0:02:02]} 16. Bb6 {[%clk 0:02:15]}  Qd7 {[%clk 0:01:54]} 17. f3 {[%clk 0:02:04]}  Ne7 {[%clk 0:01:36]} 18. Nxe7+ {[%clk 0:01:58]}  Qxe7 {[%clk 0:01:37]} 19. Nb4 {[%clk 0:01:58]}  Nf6 {[%clk 0:01:36]} 20. Nd5 {[%clk 0:01:50]}  Nxd5 {[%clk 0:01:35]} 21. cxd5 {[%clk 0:01:50]}  Bf5 {[%clk 0:01:35]} 22. Bd3 {[%clk 0:01:49]}  Qd7 {[%clk 0:01:26]} 23. Bxf5 {[%clk 0:01:49]}  Qxf5 {[%clk 0:01:25]} 24. Qa4 {[%clk 0:01:46]}  Rac8 {[%clk 0:01:23]} 25. Rac1 {[%clk 0:01:46]}  Rxc1 {[%clk 0:01:00]} 26. Rxc1 {[%clk 0:01:45]}  Rc8 {[%clk 0:01:01]} 27. Rxc8+ {[%clk 0:01:26]}  Qxc8 {[%clk 0:01:02]} 28. Kf2 {[%clk 0:01:26]}  Kf7 {[%clk 0:00:46]} 29. Ke2 {[%clk 0:01:14]}  Bf6 {[%clk 0:00:34]} 30. Ba5 {[%clk 0:01:08]}  b5 {[%clk 0:00:27]} 31. Qe4 {[%clk 0:01:06]}  Kg7 {[%clk 0:00:25]} 32. Bd2 {[%clk 0:00:50]}  h5 {[%clk 0:00:21]} 33. b3 {[%clk 0:00:48]}  h4 {[%clk 0:00:20]} 34. a4 {[%clk 0:00:37]}  h3 {[%clk 0:00:16]} 35. Kf1 {[%clk 0:00:19]}  bxa4 {[%clk 0:00:16]} 36. bxa4 {[%clk 0:00:16]}  Bh4 {[%clk 0:00:15]} 37. g3 {[%clk 0:00:12]}  Bxg3 {[%clk 0:00:05]} 38. hxg3 {[%clk 0:00:11]}  h2 {[%clk 0:00:04]} 39. Kg2 {[%clk 0:00:11]}  Qh8 {[%clk 0:00:03]} 40. Kh1 {[%clk 0:00:09]}  Qh3 {[%clk 0:00:03]} 41. gxf4 {[%clk 0:00:09]}  Qf1+ {[%clk 0:00:03]} 42. Kxh2 {[%clk 0:00:09]}  Qf2+ {[%clk 0:00:04]} 43. Kh3 {[%clk 0:00:10]}  Qxd2 {[%clk 0:00:05]} 44. fxe5 {[%clk 0:00:09]}  Qh6+ {[%clk 0:00:06]} 45. Kg4 {[%clk 0:00:09]}  Qh2 {[%clk 0:00:03]} 46. exd6 {[%clk 0:00:08]}  Qg2+ {[%clk 0:00:04]} 47. Kf4 {[%clk 0:00:07]}  Qh2+ {[%clk 0:00:03]} 48. Kf5 {[%clk 0:00:07]}  Qh5+ {[%clk 0:00:02]} 49. Kf4 {[%clk 0:00:08]}  Qh2+ {[%clk 0:00:02]} 50. Ke3 {[%clk 0:00:07]}  Qxd6 {[%clk 0:00:02]} 51. Qg4+ {[%clk 0:00:06]}  Kh7 {[%clk 0:00:02]} 52. Qh3+ {[%clk 0:00:06]}  Kg7 {[%clk 0:00:03]} 53. Qg4+ {[%clk 0:00:06]}  Kh7 {[%clk 0:00:03]} 54. Qf5+ {[%clk 0:00:06]}  Kg7 {[%clk 0:00:03]} 55. Qe4 {[%clk 0:00:04]}  Qc5+ {[%clk 0:00:03]} 56. Kf4 {[%clk 0:00:04]}  Kf7 {[%clk 0:00:02]} 57. Qe6+ {[%clk 0:00:04]}  Kf8 {[%clk 0:00:02]} 58. Qf6+ {[%clk 0:00:04]}  Ke8 {[%clk 0:00:00]} 59. Qc6+ {[%clk 0:00:04]} 1-0


[Site "https://www.chess.com"]

[Event "Titled Tuesday Blitz June 27 Late 2023"]
[White "Tsaruk, Maksim"]
[Black "Salem, A.R. Saleh"]
[WhiteFideId "13511173"]
[BlackFideId "9301348"]
[WhiteElo "2784"]
[BlackElo "3001"]
[Result "0-1"]
[Round "4"]
[TimeControl "180+2"]
[Date "2023.06.27"]
[WhiteClock "0:00:00"]
[BlackClock "0:00:32"]
[Board "22"]

1. e4 {[%clk 0:03:00]}  c6 {[%clk 0:02:59]} 2. d4 {[%clk 0:03:01]}  d5 {[%clk 0:02:59]} 3. Nd2 {[%clk 0:03:01]}  dxe4 {[%clk 0:02:59]} 4. Nxe4 {[%clk 0:03:02]}  Nf6 {[%clk 0:03:00]} 5. Nxf6+ {[%clk 0:03:03]}  exf6 {[%clk 0:03:01]} 6. c3 {[%clk 0:03:04]}  Bd6 {[%clk 0:03:01]} 7. Bd3 {[%clk 0:03:05]}  O-O {[%clk 0:03:02]} 8. Qc2 {[%clk 0:03:05]}  Re8+ {[%clk 0:03:02]} 9. Ne2 {[%clk 0:03:06]}  h5 {[%clk 0:03:03]} 10. O-O {[%clk 0:03:07]}  h4 {[%clk 0:03:03]} 11. h3 {[%clk 0:03:08]}  Nd7 {[%clk 0:03:02]} 12. Be3 {[%clk 0:03:08]}  Nf8 {[%clk 0:03:01]} 13. c4 {[%clk 0:03:09]}  a5 {[%clk 0:02:47]} 14. Rae1 {[%clk 0:03:09]}  a4 {[%clk 0:02:47]} 15. Nc3 {[%clk 0:03:08]}  a3 {[%clk 0:02:47]} 16. c5 {[%clk 0:03:06]}  Bc7 {[%clk 0:02:45]} 17. b4 {[%clk 0:03:06]}  Ne6 {[%clk 0:02:37]} 18. Qd2 {[%clk 0:02:53]}  b6 {[%clk 0:02:16]} 19. Be4 {[%clk 0:02:09]}  bxc5 {[%clk 0:02:16]} 20. Bxc6 {[%clk 0:02:01]}  Qd6 {[%clk 0:02:07]} 21. f4 {[%clk 0:01:37]}  Qxc6 {[%clk 0:02:07]} 22. d5 {[%clk 0:01:37]}  Qa6 {[%clk 0:02:08]} 23. dxe6 {[%clk 0:01:37]}  Bxe6 {[%clk 0:02:07]} 24. Bxc5 {[%clk 0:01:36]}  Red8 {[%clk 0:02:05]} 25. Qf2 {[%clk 0:01:36]}  Qc4 {[%clk 0:02:01]} 26. Re3 {[%clk 0:01:26]}  Rd3 {[%clk 0:01:55]} 27. Rxd3 {[%clk 0:01:08]}  Qxd3 {[%clk 0:01:56]} 28. Qf3 {[%clk 0:01:08]}  Rd8 {[%clk 0:01:55]} 29. Rd1 {[%clk 0:00:43]}  Qxf3 {[%clk 0:01:50]} 30. Rxd8+ {[%clk 0:00:43]}  Bxd8 {[%clk 0:01:51]} 31. gxf3 {[%clk 0:00:44]}  g5 {[%clk 0:01:34]} 32. b5 {[%clk 0:00:29]}  Bxh3 {[%clk 0:01:22]} 33. Bxa3 {[%clk 0:00:18]}  Bb6+ {[%clk 0:01:17]} 34. Kh2 {[%clk 0:00:18]}  Be6 {[%clk 0:01:18]} 35. Bd6 {[%clk 0:00:16]}  Ba5 {[%clk 0:01:10]} 36. Ne4 {[%clk 0:00:16]}  Kg7 {[%clk 0:01:03]} 37. a3 {[%clk 0:00:04]}  Bc4 {[%clk 0:00:56]} 38. Be7 {[%clk 0:00:02]}  Bxb5 {[%clk 0:00:44]} 39. Bxf6+ {[%clk 0:00:03]}  Kg6 {[%clk 0:00:44]} 40. fxg5 {[%clk 0:00:03]}  Bd7 {[%clk 0:00:42]} 41. Be5 {[%clk 0:00:03]}  Kf5 {[%clk 0:00:39]} 42. Bd6 {[%clk 0:00:04]}  Kg6 {[%clk 0:00:36]} 43. Bb4 {[%clk 0:00:03]}  Bc7+ {[%clk 0:00:36]} 44. Bd6 {[%clk 0:00:04]}  Bd8 {[%clk 0:00:36]} 45. Nc5 {[%clk 0:00:02]}  Bc6 {[%clk 0:00:36]} 46. a4 {[%clk 0:00:03]}  Bxf3 {[%clk 0:00:34]} 47. a5 {[%clk 0:00:02]}  Bxa5 {[%clk 0:00:33]} 48. Be7 {[%clk 0:00:02]}  Bg4 {[%clk 0:00:31]} 49. Bf6 {[%clk 0:00:01]}  Bc7+ {[%clk 0:00:30]} 50. Kg2 {[%clk 0:00:01]}  h3+ {[%clk 0:00:30]} 51. Kf2 {[%clk 0:00:01]}  h2 {[%clk 0:00:31]} 52. Kg2 {[%clk 0:00:00]}  Bf3+ {[%clk 0:00:32]} 0-1


[Site "https://www.chess.com"]

[Event "Titled Tuesday Blitz June 27 Late 2023"]
[White "Pranesh M"]
[Black "Chen, Justin"]
[WhiteFideId "35028600"]
[BlackFideId "2098199"]
[WhiteElo "3020"]
[BlackElo "2624"]
[Result "1-0"]
[Round "4"]
[TimeControl "180+2"]
[Date "2023.06.27"]
[WhiteClock "0:00:58"]
[BlackClock "0:00:01"]
[Board "27"]

1. e4 {[%clk 0:02:57]}  e5 {[%clk 0:03:00]} 2. Nf3 {[%clk 0:02:55]}  Nf6 {[%clk 0:03:00]} 3. Nxe5 {[%clk 0:02:54]}  d6 {[%clk 0:03:00]} 4. Nf3 {[%clk 0:02:54]}  Nxe4 {[%clk 0:03:00]} 5. Bd3 {[%clk 0:02:54]}  d5 {[%clk 0:02:58]} 6. O-O {[%clk 0:02:53]}  Be7 {[%clk 0:02:58]} 7. Re1 {[%clk 0:02:53]}  Bf5 {[%clk 0:02:55]} 8. c4 {[%clk 0:02:53]}  Nd6 {[%clk 0:02:42]} 9. Bxf5 {[%clk 0:02:48]}  Nxf5 {[%clk 0:02:43]} 10. cxd5 {[%clk 0:02:43]}  O-O {[%clk 0:02:42]} 11. Nc3 {[%clk 0:02:43]}  Nd7 {[%clk 0:02:42]} 12. Qb3 {[%clk 0:02:39]}  Nb6 {[%clk 0:02:40]} 13. a4 {[%clk 0:02:39]}  a5 {[%clk 0:02:36]} 14. d3 {[%clk 0:02:35]}  Bb4 {[%clk 0:02:29]} 15. Bg5 {[%clk 0:02:26]}  Qd7 {[%clk 0:02:22]} 16. Ne5 {[%clk 0:02:24]}  Qc8 {[%clk 0:02:11]} 17. Nc4 {[%clk 0:02:12]}  Nd7 {[%clk 0:01:41]} 18. Rec1 {[%clk 0:02:06]}  Nd4 {[%clk 0:01:39]} 19. Qd1 {[%clk 0:02:07]}  Nc5 {[%clk 0:01:39]} 20. d6 {[%clk 0:01:56]}  Ncb3 {[%clk 0:01:24]} 21. Nd5 {[%clk 0:01:54]}  Kh8 {[%clk 0:01:07]} 22. Ncb6 {[%clk 0:01:47]}  Qf5 {[%clk 0:01:06]} 23. dxc7 {[%clk 0:01:43]}  Qxg5 {[%clk 0:00:47]} 24. Rc4 {[%clk 0:01:25]}  Rae8 {[%clk 0:00:12]} 25. Nxb4 {[%clk 0:01:24]}  axb4 {[%clk 0:00:09]} 26. c8=Q {[%clk 0:01:25]}  Rxc8 {[%clk 0:00:09]} 27. Nxc8 {[%clk 0:01:26]}  Nxa1 {[%clk 0:00:05]} 28. Qxa1 {[%clk 0:01:23]}  Nf3+ {[%clk 0:00:03]} 29. Kh1 {[%clk 0:01:23]}  Nh4 {[%clk 0:00:03]} 30. Qf1 {[%clk 0:01:19]}  Ng6 {[%clk 0:00:02]} 31. Nd6 {[%clk 0:01:19]}  Qd5 {[%clk 0:00:01]} 32. Ne4 {[%clk 0:01:16]}  Ne5 {[%clk 0:00:02]} 33. Rxb4 {[%clk 0:01:16]}  Nxd3 {[%clk 0:00:02]} 34. Nc3 {[%clk 0:01:16]}  Qf5 {[%clk 0:00:01]} 35. Rd4 {[%clk 0:01:14]}  Ne5 {[%clk 0:00:01]} 36. Rd5 {[%clk 0:01:14]}  Qf6 {[%clk 0:00:02]} 37. Qe2 {[%clk 0:01:13]}  Nc6 {[%clk 0:00:02]} 38. h3 {[%clk 0:01:14]}  h6 {[%clk 0:00:02]} 39. Kh2 {[%clk 0:01:14]}  Rd8 {[%clk 0:00:02]} 40. Rxd8+ {[%clk 0:01:08]}  Qxd8 {[%clk 0:00:03]} 41. Qe3 {[%clk 0:01:08]}  Qd6+ {[%clk 0:00:02]} 42. Qg3 {[%clk 0:01:09]}  Qb4 {[%clk 0:00:03]} 43. Nd5 {[%clk 0:01:01]}  Qxb2 {[%clk 0:00:02]} 44. Nc7 {[%clk 0:00:58]}  Qb4 {[%clk 0:00:01]} 45. Ne8 {[%clk 0:00:58]}  Qe4 {[%clk 0:00:01]} 46. Qxg7# {[%clk 0:00:58]} 1-0


[Site "https://www.chess.com"]

[Event "Titled Tuesday Blitz June 27 Late 2023"]
[White "Andrej2004"]
[Black "Makarian, Rudik"]
[BlackFideId "44105681"]
[WhiteElo "2616"]
[BlackElo "2943"]
[Result "1-0"]
[Round "4"]
[TimeControl "180+2"]
[Date "2023.06.27"]
[WhiteClock "0:00:03"]
[BlackClock "0:00:08"]
[Board "30"]

1. Nf3 {[%clk 0:03:00]}  Nf6 {[%clk 0:02:59]} 2. g3 {[%clk 0:02:59]}  b5 {[%clk 0:02:59]} 3. Bg2 {[%clk 0:02:58]}  Bb7 {[%clk 0:03:00]} 4. b3 {[%clk 0:02:58]}  e6 {[%clk 0:03:00]} 5. Bb2 {[%clk 0:02:59]}  Be7 {[%clk 0:03:01]} 6. O-O {[%clk 0:02:59]}  O-O {[%clk 0:03:02]} 7. d3 {[%clk 0:03:00]}  c5 {[%clk 0:03:01]} 8. e4 {[%clk 0:03:00]}  d5 {[%clk 0:03:02]} 9. exd5 {[%clk 0:02:59]}  Nxd5 {[%clk 0:03:03]} 10. Re1 {[%clk 0:02:57]}  Nc6 {[%clk 0:03:03]} 11. Nbd2 {[%clk 0:02:57]}  b4 {[%clk 0:03:01]} 12. Qe2 {[%clk 0:02:55]}  Bf6 {[%clk 0:02:59]} 13. Ne5 {[%clk 0:02:29]}  Rb8 {[%clk 0:02:33]} 14. Ndc4 {[%clk 0:02:12]}  Nd4 {[%clk 0:02:26]} 15. Bxd4 {[%clk 0:02:05]}  cxd4 {[%clk 0:02:27]} 16. a3 {[%clk 0:02:05]}  Nc3 {[%clk 0:02:19]} 17. Qg4 {[%clk 0:01:58]}  a5 {[%clk 0:02:06]} 18. axb4 {[%clk 0:01:54]}  axb4 {[%clk 0:02:07]} 19. Nc6 {[%clk 0:01:43]}  Bxc6 {[%clk 0:02:06]} 20. Bxc6 {[%clk 0:01:44]}  Qc7 {[%clk 0:02:02]} 21. Bg2 {[%clk 0:01:42]}  g6 {[%clk 0:01:59]} 22. h4 {[%clk 0:01:42]}  h5 {[%clk 0:01:59]} 23. Qf3 {[%clk 0:01:42]}  Kg7 {[%clk 0:02:00]} 24. Ra5 {[%clk 0:01:37]}  Rb5 {[%clk 0:01:57]} 25. Rxb5 {[%clk 0:01:10]}  Nxb5 {[%clk 0:01:58]} 26. Ra1 {[%clk 0:01:09]}  Na3 {[%clk 0:01:58]} 27. Qe2 {[%clk 0:00:43]}  Qc5 {[%clk 0:01:58]} 28. Be4 {[%clk 0:00:36]}  Rd8 {[%clk 0:01:55]} 29. Rf1 {[%clk 0:00:35]}  Rd7 {[%clk 0:01:53]} 30. Qd1 {[%clk 0:00:33]}  Ra7 {[%clk 0:01:53]} 31. Kg2 {[%clk 0:00:28]}  Nb5 {[%clk 0:01:53]} 32. Qf3 {[%clk 0:00:26]}  Ra2 {[%clk 0:01:52]} 33. Rc1 {[%clk 0:00:24]}  Na3 {[%clk 0:01:51]} 34. Qe2 {[%clk 0:00:20]}  Nb5 {[%clk 0:01:51]} 35. Qf3 {[%clk 0:00:19]}  Nc3 {[%clk 0:01:52]} 36. Bb7 {[%clk 0:00:16]}  Qa7 {[%clk 0:01:47]} 37. Bc6 {[%clk 0:00:15]}  Ra1 {[%clk 0:01:45]} 38. Rxa1 {[%clk 0:00:13]}  Qxa1 {[%clk 0:01:45]} 39. Nd6 {[%clk 0:00:13]}  Qe1 {[%clk 0:01:20]} 40. Ne8+ {[%clk 0:00:12]}  Kf8 {[%clk 0:01:20]} 41. Nxf6 {[%clk 0:00:12]}  Ne2 {[%clk 0:01:21]} 42. Ne4 {[%clk 0:00:05]}  Qg1+ {[%clk 0:01:16]} 43. Kh3 {[%clk 0:00:05]}  Qf1+ {[%clk 0:01:17]} 44. Qg2 {[%clk 0:00:05]}  Qe1 {[%clk 0:01:17]} 45. Bb5 {[%clk 0:00:05]}  Kg7 {[%clk 0:01:16]} 46. Bc4 {[%clk 0:00:05]}  Qd1 {[%clk 0:01:14]} 47. Ng5 {[%clk 0:00:04]}  Qe1 {[%clk 0:00:59]} 48. Kh2 {[%clk 0:00:04]}  Qd1 {[%clk 0:00:59]} 49. Qf3 {[%clk 0:00:04]}  Qg1+ {[%clk 0:00:58]} 50. Kh3 {[%clk 0:00:04]}  Qf1+ {[%clk 0:00:58]} 51. Qg2 {[%clk 0:00:04]}  Qd1 {[%clk 0:00:57]} 52. Kh2 {[%clk 0:00:04]}  Qe1 {[%clk 0:00:57]} 53. Nh3 {[%clk 0:00:05]}  Qd2 {[%clk 0:00:51]} 54. Qf3 {[%clk 0:00:03]}  Qe1 {[%clk 0:00:47]} 55. Qg2 {[%clk 0:00:04]}  Qd1 {[%clk 0:00:45]} 56. Ng1 {[%clk 0:00:04]}  Nc3 {[%clk 0:00:43]} 57. Qf3 {[%clk 0:00:04]}  Qxc2 {[%clk 0:00:43]} 58. Nh3 {[%clk 0:00:03]}  Qa2 {[%clk 0:00:35]} 59. Ng5 {[%clk 0:00:03]}  Qa7 {[%clk 0:00:35]} 60. Qf4 {[%clk 0:00:03]}  Qe7 {[%clk 0:00:34]} 61. Qxd4+ {[%clk 0:00:03]}  Kg8 {[%clk 0:00:30]} 62. Qf4 {[%clk 0:00:03]}  Ne2 {[%clk 0:00:28]} 63. Qe5 {[%clk 0:00:03]}  Nc3 {[%clk 0:00:27]} 64. Nxe6 {[%clk 0:00:03]}  fxe6 {[%clk 0:00:11]} 65. Bxe6+ {[%clk 0:00:04]}  Kf8 {[%clk 0:00:08]} 66. Qh8# {[%clk 0:00:03]} 1-0


[Site "https://www.chess.com"]